bitfinex-derivatives/quotes_SOLF0:USTF0_20251024
["timestamp","ask_amount","ask_price","bid_price","bid_amount"]
[1761274379555,2.37391396,192.58,192.51,43.28]
[1761274379556,4.83190754,192.58,192.52,2.8]
[1761274379759,4.03220837,192.57,192.52,2.8]
[1761274379962,4.03220837,192.56,192.52,2.8]
[1761274380257,4.03220837,192.55,192.52,2.8]
[1761274380457,4.03220837,192.54,192.52,2.8]
[1761274380756,4.83190754,192.58,192.52,2.8]
[1761274380950,4.03198917,192.57,192.52,2.8]
[1761274381154,4.03198917,192.56,192.52,2.8]
[1761274381358,4.03198917,192.55,192.52,2.8]
[1761274381659,4.03198917,192.54,192.53,43.28]
[1761274381855,4.03198917,192.54,192.53,46.08]
[1761274382154,4.03198917,192.54,192.53,2.8]
[1761274382361,4.03198917,192.54,192.53,12.9]
[1761274383763,4.03198917,192.54,192.53,2.8]
[1761274384062,4.03198917,192.54,192.53,22.48]
[1761274387865,4.03198917,192.54,192.53,2.8]
[1761274388161,4.03198917,192.54,192.5,5.17391396]
[1761274388357,4.83190754,192.58,192.53,10.1]
[1761274388557,4.03261094,192.57,192.53,10.1]
[1761274388765,4.03261094,192.56,192.53,10.1]
[1761274388964,4.03261094,192.55,192.53,10.1]
[1761274389164,4.03261094,192.54,192.53,10.1]
[1761274391865,4.03261094,192.54,192.48,2.8]
[1761274392067,4.03261094,192.54,192.47,2.37391396]
[1761274392068,4.03261094,192.53,192.49,46.06]
[1761274392262,4.03261094,192.52,192.49,43.26]
[1761274392461,4.83190754,192.56,192.5,2.8]
[1761274392769,4.03358962,192.55,192.5,2.8]
[1761274392968,4.03358962,192.54,192.5,2.8]
[1761274393161,4.03358962,192.53,192.5,2.8]
[1761274393361,4.83190754,192.57,192.5,2.8]
[1761274393560,4.03421663,192.56,192.5,2.8]
[1761274393757,4.03421663,192.55,192.5,2.8]
[1761274393963,4.03421663,192.54,192.5,2.8]
[1761274394266,4.03421663,192.53,192.5,2.8]
[1761274394464,4.03421663,192.52,192.5,2.8]
[1761274394664,4.48638135,192.56,192.5,2.8]
[1761274394867,4.03512331,192.55,192.52,2.8]
[1761274395063,4.03512331,192.54,192.52,2.8]
[1761274395263,4.03512331,192.53,192.52,2.8]
[1761274397670,4.83190754,192.58,192.52,2.8]
[1761274397870,4.03727283,192.57,192.52,2.8]
[1761274398070,4.03727283,192.56,192.52,2.8]
[1761274398264,4.03727283,192.55,192.52,2.8]
[1761274398467,4.03727283,192.54,192.52,2.8]
[1761274398663,4.83190754,192.58,192.52,2.8]
[1761274398864,4.03793647,192.57,192.52,2.8]
[1761274399065,4.03793647,192.56,192.52,2.8]
[1761274399365,4.03793647,192.55,192.52,2.8]
[1761274399570,4.03793647,192.54,192.52,2.8]
[1761274399768,4.03793647,192.53,192.52,2.8]
[1761274403376,12.8749936,192.67,192.52,2.8]
[1761274403377,4.83190754,192.58,192.52,2.8]
[1761274403566,9.32305815,192.59,192.55,2.8]
[1761274403768,4.83190754,192.59,192.56,46.06]
[1761274404073,4.83190754,192.59,192.57,2.8]
[1761274404376,9.34930277,192.59,192.57,2.8]
[1761274404573,4.83190754,192.59,192.57,2.8]
[1761274404875,4.83190754,192.6,192.57,2.8]
[1761274406672,9.34819858,192.6,192.56,43.26]
[1761274406870,4.83190754,192.6,192.54,5.17391396]
[1761274407174,4.83190754,192.58,192.55,43.26]
[1761274407372,9.34819858,192.58,192.55,43.26]
[1761274407574,4.83190754,192.58,192.55,45.91]
[1761274408174,9.34859403,192.58,192.55,45.91]
[1761274408369,4.83190754,192.58,192.55,45.91]
[1761274409177,9.34857599,192.58,192.55,45.91]
[1761274409377,4.83190754,192.58,192.55,45.91]
[1761274410077,9.34855772,192.58,192.56,43.26]
[1761274410275,4.83190754,192.58,192.56,43.26]
[1761274410976,9.34838965,192.58,192.56,43.26]
[1761274411178,4.83190754,192.58,192.56,43.26]
[1761274411978,9.34838909,192.58,192.56,43.26]
[1761274412178,4.83190754,192.58,192.56,43.26]
[1761274412776,9.34819982,192.58,192.56,43.26]
[1761274412976,4.83190754,192.58,192.56,43.26]
[1761274413176,6.42928685,192.61,192.57,2.86]
[1761274413177,4.83190754,192.61,192.57,2.86]
[1761274413581,4.51517953,192.61,192.57,2.86]
[1761274413784,4.83190754,192.62,192.57,2.86]
[1761274414281,9.34596975,192.62,192.57,2.86]
[1761274414482,4.83190754,192.62,192.57,2.86]
[1761274414981,9.34488751,192.62,192.58,43.26]
[1761274415182,4.83190754,192.62,192.58,46.12]
[1761274415382,4.08133827,192.61,192.58,46.12]
[1761274415582,4.08133827,192.6,192.58,46.12]
[1761274415785,4.08133827,192.59,192.58,46.12]
[1761274417886,4.83190754,192.65,192.59,2.86]
[1761274418186,4.07950754,192.64,192.59,2.86]
[1761274418486,4.07950754,192.63,192.59,2.86]
[1761274418686,4.07950754,192.62,192.59,2.86]
[1761274418886,4.07950754,192.61,192.59,2.86]
[1761274419085,4.83190754,192.65,192.59,2.86]
[1761274419387,4.07697312,192.64,192.59,2.86]
[1761274419586,4.07697312,192.63,192.59,2.86]
[1761274419787,4.07697312,192.62,192.59,2.86]
[1761274419986,4.07697312,192.61,192.59,2.86]
[1761274420186,4.83190754,192.65,192.59,2.86]
[1761274420388,4.0759779,192.64,192.59,2.86]
[1761274420690,4.0759779,192.63,192.59,2.86]
[1761274420889,4.0759779,192.62,192.59,2.86]
[1761274421187,4.0759779,192.61,192.59,2.86]
[1761274421388,4.83190754,192.66,192.6,5.23391396]
[1761274421586,4.07492704,192.65,192.61,2.86]
[1761274421781,4.07492704,192.64,192.62,46.1]
[1761274422087,4.07492704,192.63,192.62,46.1]
[1761274432698,4.07492704,192.63,192.62,2.86]
[1761274432997,4.07492704,192.63,192.62,10.94]
[1761274434294,4.07492704,192.63,192.52,4.6733]
[1761274434497,4.0550826,192.62,192.57,2.86]
[1761274434695,4.0550826,192.61,192.59,2.86]
[1761274434892,4.55762069,192.64,192.59,2.86]
[1761274435086,4.05549838,192.63,192.59,2.86]
[1761274435286,4.05549838,192.62,192.59,2.86]
[1761274435498,4.05549838,192.61,192.59,2.86]
[1761274435697,4.55762069,192.64,192.59,2.86]
[1761274435899,4.05582667,192.63,192.59,2.86]
[1761274436099,4.05582667,192.62,192.59,2.86]
[1761274436291,4.05582667,192.61,192.59,2.86]
[1761274436491,4.05582667,192.6,192.59,2.86]
[1761274437505,4.83190754,192.65,192.59,2.86]
[1761274437698,4.05692945,192.64,192.59,2.86]
[1761274437898,4.05692945,192.63,192.59,2.86]
[1761274438100,4.05692945,192.62,192.59,2.86]
[1761274438405,4.05692945,192.61,192.59,2.86]
[1761274438607,4.05692945,192.6,192.59,2.86]
[1761274438809,4.05692945,192.6,192.59,4.37762811]
[1761274439305,4.05692945,192.6,192.59,47.61762811]
[1761274444709,4.05692945,192.6,192.59,2.86]
[1761274444911,4.05692945,192.6,192.59,46.1]
[1761274445911,4.05692945,192.6,192.59,43.24]
[1761274446301,4.05692945,192.6,192.59,2.65]
[1761274446500,4.05692945,192.6,192.56,1.51762811]
[1761274446814,4.05692945,192.59,192.57,2.65]
[1761274447014,4.56748703,192.6,192.58,43.24]
[1761274447312,4.06382999,192.59,192.58,43.24]
[1761274447714,4.06382999,192.59,192.58,2.65]
[1761274447906,4.06382999,192.59,192.58,45.89]
[1761274448515,4.06382999,192.59,192.58,43.24]
[1761274448908,4.06382999,192.59,192.56,1.51762811]
[1761274449109,4.06382999,192.58,192.57,45.87]
[1761274449313,4.06382999,192.58,192.57,2.65]
[1761274449912,4.06382999,192.58,192.57,43.22]
[1761274450115,4.06382999,192.58,192.57,45.87]
[1761274451323,4.06382999,192.58,192.5,2.65]
[1761274451522,4.06382999,192.57,192.55,2.65]
[1761274451722,4.06382999,192.56,192.55,2.65]
[1761274451920,4.06382999,192.56,192.55,45.87]
[1761274453716,4.06382999,192.56,192.55,47.38762811]
[1761274456725,4.06382999,192.56,192.55,4.16762811]
[1761274457026,4.06382999,192.56,192.55,47.38762811]
[1761274459424,4.83190754,192.63,192.56,2.65]
[1761274459622,12.15007922,192.64,192.61,2.65]
[1761274459823,2.75,192.64,192.62,45.87]
[1761274460628,4.56748203,192.65,192.63,2.65]
[1761274461124,9.39938957,192.66,192.63,2.65]
[1761274461329,2.75,192.67,192.63,2.65]
[1761274461524,9.39773293,192.67,192.63,2.65]
[1761274461725,7.58190754,192.68,192.63,2.65]
[1761274461920,7.58190754,192.69,192.65,2.65]
[1761274462122,4.56565351,192.68,192.66,43.22]
[1761274462326,2.75,192.67,192.66,43.22]
[1761274462922,2.75,192.66,192.65,43.22]
[1761274463122,12.14756105,192.66,192.65,43.22]
[1761274464233,12.16255254,192.66,192.65,43.22]
[1761274465534,2.75,192.65,192.63,43.22]
[1761274465926,2.75,192.65,192.63,45.87]
[1761274468536,2.75,192.65,192.61,2.83]
[1761274468834,2.65,192.64,192.62,43.22]
[1761274469128,9.37497757,192.65,192.62,45.98]
[1761274469129,2.83,192.65,192.62,45.98]
[1761274469330,7.3582696,192.65,192.62,2.76]
[1761274469531,2.83,192.65,192.63,43.22]
[1761274469728,7.35831499,192.65,192.63,43.22]
[1761274470034,2.83,192.65,192.63,45.98]
[1761274470231,7.358315,192.65,192.63,2.76]
[1761274470437,2.83,192.65,192.63,45.98]
[1761274470730,7.35836104,192.65,192.63,45.98]
[1761274471437,4.03173844,192.64,192.63,45.98]
[1761274471737,4.03173844,192.64,192.63,2.76]
[1761274472038,4.03173844,192.64,192.63,43.22]
[1761274473041,4.03173844,192.64,192.63,45.98]
[1761274474537,4.03173844,192.64,192.63,2.76]
[1761274474737,4.03173844,192.64,192.63,45.96]
[1761274475235,4.03173844,192.64,192.63,2.76]
[1761274475437,4.03173844,192.64,192.63,45.96]
[1761274477445,4.03173844,192.64,192.59,2.76]
[1761274477636,4.03203791,192.63,192.6,43.2]
[1761274477831,4.03203791,192.62,192.61,2.76]
[1761274478036,4.03203791,192.62,192.61,45.96]
[1761274478634,2.83,192.61,192.59,2.76]
[1761274478839,2.83,192.61,192.6,43.2]
[1761274479039,6.8624817,192.61,192.6,43.2]
[1761274479544,4.0324817,192.61,192.6,43.2]
[1761274480439,4.0324817,192.61,192.6,45.96]
[1761274482244,4.0324817,192.61,192.6,2.76]
[1761274482443,4.0324817,192.61,192.6,45.96]
[1761274482650,4.0324817,192.61,192.57,2.76]
[1761274482839,4.0324817,192.6,192.59,2.76]
[1761274483349,4.0324817,192.6,192.59,45.96]
[1761274483949,4.0324817,192.6,192.59,2.76]
[1761274484144,4.0324817,192.6,192.59,45.96]
[1761274484448,4.0324817,192.6,192.59,2.76]
[1761274484649,4.0324817,192.6,192.59,45.96]
[1761274486045,2.83,192.59,192.53,2.76]
[1761274486340,4.84689903,192.57,192.53,2.76]
[1761274486548,4.0324817,192.56,192.53,2.76]
[1761274486746,4.0324817,192.55,192.53,2.76]
[1761274486940,4.0324817,192.54,192.53,2.76]
[1761274488345,4.0324817,192.57,192.53,2.76]
[1761274488545,4.52810229,192.61,192.55,2.76]
[1761274488850,4.03087412,192.6,192.55,2.76]
[1761274489050,4.03087412,192.59,192.55,2.76]
[1761274489351,4.03087412,192.58,192.55,2.76]
[1761274489550,4.03087412,192.57,192.55,2.76]
[1761274489754,4.52810229,192.61,192.55,2.76]
[1761274489946,4.0307045,192.6,192.55,2.76]
[1761274490249,2.83,192.58,192.48,2.76]
[1761274490449,4.0307045,192.57,192.52,2.76]
[1761274490647,4.0307045,192.56,192.54,2.76]
[1761274490848,4.0307045,192.55,192.54,2.76]
[1761274491252,7.35783596,192.59,192.54,2.76]
[1761274491552,4.02517054,192.58,192.54,2.76]
[1761274491752,4.02517054,192.57,192.54,2.76]
[1761274492053,4.02517054,192.56,192.54,2.76]
[1761274492254,2.83,192.59,192.54,2.76]
[1761274492553,4.02484323,192.58,192.54,2.76]
[1761274492748,4.02484323,192.57,192.54,2.76]
[1761274492940,4.02484323,192.56,192.54,2.76]
[1761274493147,2.83,192.59,192.54,2.76]
[1761274493347,4.02484323,192.58,192.54,2.76]
[1761274493649,4.02484323,192.57,192.54,2.76]
[1761274493852,4.02484323,192.56,192.54,2.76]
[1761274494062,2.83,192.59,192.54,2.76]
[1761274494250,4.02462246,192.58,192.54,2.76]
[1761274494450,4.02462246,192.57,192.54,2.76]
[1761274494648,4.02462246,192.56,192.54,2.76]
[1761274494848,2.83,192.59,192.54,2.76]
[1761274495051,4.02440692,192.58,192.54,2.76]
[1761274495251,4.02440692,192.57,192.54,2.76]
[1761274495451,4.02440692,192.56,192.54,2.76]
[1761274495653,2.83,192.59,192.54,2.76]
[1761274495850,4.02419661,192.58,192.54,2.76]
[1761274496052,4.02419661,192.57,192.54,2.76]
[1761274496249,6.36452714,192.61,192.54,2.76]
[1761274496557,4.02402538,192.6,192.54,2.76]
[1761274496751,4.84689903,192.64,192.55,1.04]
[1761274496952,4.84074602,192.74,192.63,1.51762811]
[1761274497150,4.47255912,192.75,192.66,1.51762811]
[1761274497350,4.47255912,192.75,192.69,2.76]
[1761274497755,2.83,192.76,192.69,2.76]
[1761274498356,2.83,192.76,192.7,2.76]
[1761274498658,2.83,192.78,192.7,2.76]
[1761274498865,2.83,192.77,192.7,2.76]
[1761274499055,2.74,192.74,192.71,5.62]
[1761274499458,2.74,192.77,192.71,8.38]
[1761274499756,1.51762811,192.78,192.71,8.38]
[1761274499757,2.74,192.75,192.71,8.38]
[1761274500258,2.74,192.75,192.66,2.76]
[1761274500560,2.74,192.75,192.67,12.4]
[1761274500762,2.74,192.75,192.68,2.76]
[1761274501357,2.74,192.78,192.68,2.76]
[1761274501568,2.74,192.79,192.71,2.76]
[1761274502065,2.36900044,192.78,192.68,2.76]
[1761274502363,7.21255912,192.8,192.73,2.76]
[1761274502562,2.74,192.8,192.73,2.76]
[1761274503460,2.74,192.8,192.65,2.76]
[1761274503668,2.74,192.78,192.67,2.76]
[1761274505365,2.74,192.81,192.69,2.76]
[1761274505761,2.74,192.81,192.72,2.76]
[1761274506161,2.74,192.85,192.72,2.76]
[1761274508160,2.74,192.85,192.74,2.76]
[1761274509368,2.74,192.84,192.74,2.76]
[1761274510060,2.74,192.84,192.75,2.76]
[1761274510568,2.74,192.83,192.75,2.76]
[1761274518571,2.74,192.81,192.71,2.76]
[1761274518873,2.74,192.78,192.71,2.76]
[1761274519463,2.74,192.78,192.67,46.3]
[1761274519668,2.74,192.78,192.68,2.76]
[1761274519973,2.74,192.75,192.68,2.76]
[1761274521781,2.74,192.78,192.68,2.76]
[1761274522278,2.74,192.78,192.69,2.76]
[1761274525383,2.74,192.78,192.69,36.76]
[1761274525579,2.74,192.78,192.7,2.76]
[1761274528782,2.68,192.77,192.7,2.76]
[1761274529980,2.68,192.77,192.67,2.6]
[1761274530183,2.84,192.74,192.67,2.6]
[1761274534780,2.84,192.74,192.61,23.1]
[1761274534781,2.84,192.74,192.61,2.6]
[1761274534982,2.84,192.74,192.62,2.6]
[1761274540993,2.84,192.71,192.62,2.6]
[1761274543787,2.84,192.71,192.6,2.36900044]
[1761274543788,2.84,192.71,192.63,2.6]
[1761274549186,2.84,192.71,192.59,2.6]
[1761274549389,2.84,192.67,192.59,2.6]
[1761274555095,2.84,192.67,192.6,2.6]
[1761274560695,2.84,192.67,192.61,2.77]
[1761274561397,65.0547239,193.25,192.65,2.77]
[1761274561398,2.67,192.73,192.65,2.77]
[1761274561999,2.67,192.72,192.65,2.77]
[1761274562391,2.67,192.71,192.65,2.77]
[1761274563291,6.48570437,192.71,192.65,2.77]
[1761274563494,2.67,192.69,192.62,47.64708466]
[1761274565196,2.67,192.68,192.61,43.36]
[1761274565393,3.81570437,192.68,192.61,44.87708466]
[1761274565601,2.67,192.67,192.61,44.87708466]
[1761274565805,2.67,192.67,192.61,1.51708466]
[1761274566695,2.67,192.66,192.61,1.51708466]
[1761274567001,2.67,192.66,192.59,1.51708466]
[1761274567204,2.67,192.65,192.59,1.51708466]
[1761274568001,2.67,192.65,192.59,4.28708466]
[1761274568799,2.67,192.65,192.6,2.77]
[1761274569002,3.82064883,192.65,192.6,2.77]
[1761274569207,2.67,192.65,192.6,2.77]
[1761274570211,2.67,192.67,192.62,2.77]
[1761274570511,2.67,192.65,192.61,1.51708466]
[1761274570710,6.49064883,192.65,192.61,1.51708466]
[1761274570908,2.67,192.65,192.61,1.51708466]
[1761274571415,2.67,192.66,192.61,1.51708466]
[1761274571603,2.67,192.64,192.61,1.51708466]
[1761274572210,2.67,192.67,192.63,1.51708466]
[1761274572411,3.82524293,192.66,192.63,2.47708466]
[1761274572800,3.82524293,192.66,192.64,0.96]
[1761274573001,3.82524293,192.68,192.64,0.96]
[1761274573201,3.82524293,192.67,192.64,0.96]
[1761274573405,2.67,192.68,192.64,0.96]
[1761274573604,3.82725434,192.67,192.64,0.96]
[1761274573798,2.67,192.68,192.64,0.96]
[1761274574104,4.83751441,192.71,192.64,0.96]
[1761274574105,6.49725434,192.67,192.64,0.96]
[1761274574308,3.82886307,192.66,192.64,0.96]
[1761274575006,2.67,192.67,192.64,0.96]
[1761274575407,3.82924025,192.66,192.64,0.96]
[1761274575611,2.67,192.67,192.64,0.96]
[1761274576809,3.82976866,192.66,192.64,0.96]
[1761274577009,2.67,192.67,192.63,1.51708466]
[1761274577309,2.67,192.65,192.63,1.51708466]
[1761274577710,2.67,192.65,192.61,1.51708466]
[1761274578017,6.50051502,192.64,192.6,0.96]
[1761274578217,2.67,192.64,192.6,0.96]
[1761274582913,2.67,192.67,192.61,0.96]
[1761274583218,6.4701984,192.66,192.62,0.96]
[1761274583415,3.8001984,192.65,192.62,0.96]
[1761274583613,2.67,192.66,192.62,0.96]
[1761274583814,6.47046711,192.65,192.62,0.96]
[1761274584004,3.80066204,192.64,192.62,0.96]
[1761274584206,2.67,192.65,192.62,0.96]
[1761274585317,3.80185273,192.64,192.62,0.96]
[1761274585618,2.67,192.65,192.62,0.96]
[1761274585918,3.80194429,192.64,192.62,0.96]
[1761274586117,2.67,192.65,192.62,0.96]
[1761274586313,3.80194429,192.64,192.62,0.96]
[1761274586510,2.67,192.65,192.62,0.96]
[1761274586814,3.80195429,192.64,192.62,0.96]
[1761274587010,2.67,192.65,192.62,0.96]
[1761274587211,3.80195425,192.64,192.62,0.96]
[1761274587413,2.67,192.65,192.62,0.96]
[1761274587615,6.64224829,192.64,192.61,1.51708466]
[1761274587814,2.84,192.64,192.61,1.51708466]
[1761274588418,2.84,192.64,192.61,2.46708466]
[1761274593520,2.65,192.62,192.59,44.75708466]
[1761274593918,2.65,192.62,192.6,0.95]
[1761274594114,2.65,192.67,192.6,0.95]
[1761274594420,2.65,192.65,192.6,0.95]
[1761274594615,2.65,192.63,192.6,0.95]
[1761274595517,2.65,192.61,192.55,1.51708466]
[1761274595710,2.65,192.59,192.53,1.51708466]
[1761274595914,2.65,192.57,192.53,1.51708466]
[1761274597315,2.65,192.57,192.51,2.46708466]
[1761274597511,2.65,192.57,192.52,0.95]
[1761274601217,2.65,192.57,192.49,2.46708466]
[1761274601422,2.65,192.56,192.49,45.72708466]
[1761274603216,2.65,192.56,192.49,0.95]
[1761274603525,2.65,192.55,192.49,0.95]
[1761274604823,2.65,192.55,192.46,1.51708466]
[1761274605125,2.65,192.55,192.46,2.46708466]
[1761274605320,3.79142682,192.55,192.46,2.46708466]
[1761274605520,2.65,192.54,192.46,2.46708466]
[1761274607117,2.65,192.54,192.47,0.95]
[1761274608118,2.65,192.54,192.48,1.51708466]
[1761274609527,2.65,192.54,192.47,0.95]
[1761274609727,2.65,192.54,192.47,2.46708466]
[1761274612632,2.65,192.54,192.49,1.51708466]
[1761274612823,2.65,192.54,192.51,1.51708466]
[1761274613029,2.65,192.54,192.51,2.46708466]
[1761274618925,2.65,192.58,192.54,0.95]
[1761274619125,2.62,192.6,192.57,1.51708466]
[1761274619330,2.62,192.6,192.47,43.26]
[1761274619331,2.62,192.65,192.59,1.51708466]
[1761274619527,2.62,192.65,192.61,1.51708466]
[1761274620340,2.62,192.65,192.59,1.51708466]
[1761274620534,2.62,192.65,192.56,1.51708466]
[1761274620739,2.62,192.63,192.55,1.51708466]
[1761274621338,2.62,192.62,192.55,1.51708466]
[1761274622339,1.51708466,192.58,192.51,1.51708466]
[1761274622541,2.62,192.57,192.51,1.51708466]
[1761274622739,2.62,192.57,192.48,0.96]
[1761274624639,2.62,192.57,192.48,3.33353505]
[1761274625635,2.62,192.57,192.48,0.96]
[1761274625841,2.62,192.57,192.47,2.37353505]
[1761274626038,2.62,192.57,192.48,0.96]
[1761274626238,2.62,192.56,192.48,0.96]
[1761274630255,2.37353505,192.55,192.43,44.22]
[1761274630447,2.62,192.54,192.43,44.22]
[1761274630649,2.62,192.53,192.43,44.22]
[1761274634359,3.81207273,192.53,192.43,44.22]
[1761274634558,2.62,192.52,192.43,44.22]
[1761274634858,2.62,192.52,192.43,0.96]
[1761274635060,3.81207273,192.52,192.43,0.96]
[1761274635358,2.62,192.51,192.43,0.96]
[1761274636956,3.81579607,192.54,192.43,0.96]
[1761274637154,2.62,192.5,192.43,0.96]
[1761274637953,2.62,192.5,192.39,0.96]
[1761274638258,2.62,192.48,192.39,0.96]
[1761274638462,2.62,192.47,192.39,0.96]
[1761274638663,2.62,192.46,192.39,0.96]
[1761274642763,2.62,192.45,192.39,3.33353505]
[1761274644769,2.62,192.45,192.39,0.96]
[1761274648969,2.62,192.45,192.36,3.33353505]
[1761274649164,2.84,192.44,192.3,0.96]
[1761274649470,2.84,192.43,192.32,0.96]
[1761274649666,2.84,192.42,192.32,0.96]
[1761274652666,6.2186114,192.44,192.32,0.96]
[1761274652871,2.84,192.41,192.32,0.96]
[1761274653068,2.37353505,192.41,192.3,2.37353505]
[1761274653272,2.84,192.4,192.29,168.32331212]
[1761274653877,2.84,192.4,192.29,0.96]
[1761274654573,2.84,192.39,192.29,0.96]
[1761274655477,2.84,192.39,192.26,0.96]
[1761274655980,2.84,192.37,192.26,0.96]
[1761274658681,2.84,192.37,192.29,0.96]
[1761274661776,2.84,192.37,192.32,0.96]
[1761274663380,2.84,192.44,192.32,0.96]
[1761274664484,2.84,192.41,192.32,0.96]
[1761274673196,2.84,192.41,192.36,0.96]
[1761274673588,2.84,192.4,192.32,0.96]
[1761274673789,2.84,192.39,192.32,0.96]
[1761274675399,2.84,192.38,192.32,0.96]
[1761274675694,3.874749,192.39,192.32,0.96]
[1761274675695,2.84,192.37,192.32,0.96]
[1761274677791,2.84,192.37,192.3,2.37353505]
[1761274678097,2.84,192.37,192.29,0.96]
[1761274678292,2.84,192.36,192.29,0.96]
[1761274678487,2.84,192.35,192.29,0.96]
[1761274682693,6.61668572,192.38,192.32,1.52169584]
[1761274682899,2.73,192.36,192.33,0.96]
[1761274683695,2.73,192.36,192.3,2.48169584]
[1761274687800,2.73,192.36,192.33,0.96]
[1761274693906,2.73,192.36,192.32,1.52169584]
[1761274694099,2.73,192.36,192.32,2.48169584]
[1761274696100,7.09902081,192.39,192.34,1.52169584]
[1761274696305,3.90206185,192.38,192.37,0.96]
[1761274697898,2.73,192.42,192.37,0.96]
[1761274698098,6.63161179,192.41,192.39,1.52169584]
[1761274698298,3.90161179,192.4,192.39,1.52169584]
[1761274699105,2.73,192.45,192.39,2.48169584]
[1761274699305,2.73,192.43,192.4,0.96]
[1761274699506,3.89849628,192.42,192.4,0.96]
[1761274699805,2.73,192.43,192.4,0.96]
[1761274700003,2.73,192.43,192.4,2.48169584]
[1761274702796,2.73,192.43,192.4,1.52169584]
[1761274703205,2.73,192.41,192.38,2.48169584]
[1761274704414,2.73,192.44,192.39,0.96]
[1761274704612,6.60405125,192.43,192.39,0.96]
[1761274704810,2.73,192.43,192.39,0.96]
[1761274705107,2.73,192.46,192.39,0.96]
[1761274705307,2.73,192.44,192.4,2.48169584]
[1761274705507,6.60338658,192.43,192.4,2.48169584]
[1761274705812,6.60369119,192.42,192.39,0.96]
[1761274706013,2.73,192.42,192.39,0.96]
[1761274706914,3.8732806,192.44,192.39,0.96]
[1761274707114,3.8732806,192.43,192.41,0.96]
[1761274707413,3.8732806,192.45,192.41,0.96]
[1761274707605,3.8732806,192.44,192.41,0.96]
[1761274707806,3.8732806,192.45,192.41,0.96]
[1761274708002,3.8732806,192.44,192.41,0.96]
[1761274708807,6.5932806,192.44,192.41,0.96]
[1761274709015,2.72,192.44,192.41,0.96]
[1761274711914,2.72,192.44,192.39,1.52169584]
[1761274712110,2.72,192.44,192.39,2.48169584]
[1761274712414,2.86,192.43,192.4,0.96]
[1761274720020,2.86,192.4,192.3,0.96]
[1761274720213,1.52169584,192.34,192.3,0.96]
[1761274720413,2.86,192.34,192.3,0.96]
[1761274721310,1.52169584,192.36,192.3,0.96]
[1761274722306,4.38169584,192.36,192.3,0.96]
[1761274722917,1.52169584,192.34,192.3,0.96]
[1761274723115,2.86,192.33,192.3,0.96]
[1761274724116,2.86,192.33,192.27,0.96]
[1761274729926,2.86,192.33,192.28,0.96]
[1761274732540,2.86,192.33,192.27,1.52169584]
[1761274733127,2.86,192.33,192.25,0.96]
[1761274734733,2.86,192.31,192.23,0.90488325]
[1761274734937,1.52169584,192.3,192.23,0.90488325]
[1761274735233,2.86,192.29,192.23,0.90488325]
[1761274735929,2.86,192.29,192.23,1.86488325]
[1761274736531,2.86,192.29,192.21,1.52169584]
[1761274736830,2.86,192.29,192.22,0.96]
[1761274737034,2.86,192.29,192.23,1.52169584]